fUSD/lending_fUSD_20260601
["ID","MTS","AMOUNT","RATE_DAILY","PERIOD"]
[423704243,1780318250000,-15963.62593895,0.00022,4]
[423704247,1780318250000,-1828.0,0.00022,2]
[423704249,1780318250000,-421.0,0.00022,2]
[423704246,1780318250000,-434.0,0.00022,2]
[423704244,1780318250000,-815.21277686,0.00022,7]
[423704248,1780318250000,-1755.0,0.00022,2]
[423704245,1780318250000,-866.0,0.00022,2]
[423704251,1780318250000,-1934.0,0.00022,2]
[423704250,1780318250000,-317.0,0.00022,2]
[423704253,1780318250000,-450.0,0.00022,2]
[423704269,1780318250000,-2143.47,0.00022466,2]
[423704289,1780318250000,-421.0,0.00023,2]
[423704290,1780318250000,-317.0,0.00023,2]
[423704312,1780318250000,-3761.85599519,0.0002421,2]
[423704311,1780318250000,-500.0,0.00024,2]
[423704313,1780318250000,-1346.3,0.00024324,2]
[423704308,1780318250000,-317.0,0.00024,2]
[423704309,1780318250000,-1934.0,0.00024,2]
[423704310,1780318250000,-533.0,0.00024,2]
[423704315,1780318250000,-179.49688803,0.00024363,2]
[423704316,1780318250000,-200.0,0.00024568,2]
[423704317,1780318250000,-763.72277884,0.00024578,2]
[423704318,1780318250000,-1000.0,0.00024658,2]
[423704304,1780318250000,-434.0,0.00024,2]
[423704321,1780318250000,-416.00554112,0.00024658,2]
[423704319,1780318250000,-500.0,0.00024658,2]
[423704323,1780318250000,-440.99,0.00024658,2]
[423704326,1780318250000,-493.18,0.00024946,7]
[423704324,1780318250000,-1100.02,0.000247,7]
[423704325,1780318250000,-743.69,0.00024906,7]
[423704327,1780318250000,-440.99,0.00024946,7]
[423704328,1780318250000,-313.60822115,0.00025,2]
[423704329,1780318250000,-315528.33295117,0.00025,2]
[423704330,1780318250000,-884.8330122,0.00025,2]
[423704280,1780318250000,-200.0,0.0002299,2]
[423704320,1780318250000,-500.0,0.00024658,2]
[423704307,1780318250000,-421.0,0.00024,2]
[423704322,1780318250000,-493.18,0.00024658,2]
[423704314,1780318250000,-196.60665953,0.00024363,2]
[423704303,1780318250000,-866.0,0.00024,2]
[423704279,1780318250000,-158.87249016,0.00022876,27]
[423704282,1780318250000,-2500.0,0.00023,20]
[423704284,1780318250000,-355.08884253,0.00023,2]
[423704283,1780318250000,-327.92668596,0.00023,20]
[423704285,1780318250000,-866.0,0.00023,2]
[423704281,1780318250000,-1000.0,0.00023,20]
[423704287,1780318250000,-1828.0,0.00023,2]
[423704288,1780318250000,-1755.0,0.00023,2]
[423704291,1780318250000,-1934.0,0.00023,2]
[423704292,1780318250000,-533.0,0.00023,2]
[423704286,1780318250000,-434.0,0.00023,2]
[423704306,1780318250000,-1755.0,0.00024,2]
[423704305,1780318250000,-1828.0,0.00024,2]
[423704294,1780318250000,-215.65015035,0.00023,7]
[423704298,1780318250000,-426.03840816,0.00023661,2]
[423704296,1780318250000,-477.52,0.000233,14]
[423704300,1780318250000,-1039.53405848,0.00024,2]
[423704297,1780318250000,-1173.53545887,0.000235,2]
[423704301,1780318250000,-3600.0,0.00024,2]
[423704302,1780318250000,-1256.97154961,0.00024,2]
[423704293,1780318250000,-533.02236066,0.00023,3]
[423704295,1780318250000,-290.3196055,0.000232,2]
[423704299,1780318250000,-200.0,0.00023779,2]
[423704368,1780318251000,-200.0,0.00026934,2]
[423704379,1780318251000,-150.0,0.00027397,2]
[423704371,1780318251000,-1109.60011597,0.00027055,2]
[423704374,1780318251000,-500.0,0.00027233,2]
[423704369,1780318251000,-493.18,0.00026964,30]
[423704363,1780318251000,-493.18,0.00026388,2]
[423704366,1780318251000,-493.18,0.00026676,7]
[423704356,1780318251000,-500.0,0.00026132,30]
[423704360,1780318251000,-200.0,0.00026145,2]
[423704365,1780318251000,-2000.0,0.00026667,7]
[423704372,1780318251000,-705.0,0.00027137,2]
[423704364,1780318251000,-440.99,0.00026388,2]
[423704370,1780318251000,-440.99,0.00026964,30]
[423704385,1780318251000,-300.0,0.00027397,2]
[423704373,1780318251000,-1100.02,0.000272,7]
[423704377,1780318251000,-152.20324461,0.00027382,22]
[423704378,1780318251000,-160.97697809,0.00027397,30]
[423704376,1780318251000,-440.99,0.00027253,2]
[423704380,1780318251000,-209.3860962,0.00027397,2]
[423704382,1780318251000,-500.0,0.00027397,2]
[423704383,1780318251000,-155.82469259,0.00027397,2]
[423704390,1780318251000,-151.0,0.00027397,2]
[423704387,1780318251000,-1409.269871,0.00027397,2]
[423704386,1780318251000,-1409.269871,0.00027397,2]
[423704389,1780318251000,-1409.269871,0.00027397,2]
[423704359,1780318251000,-834.0,0.00026132,30]
[423704375,1780318251000,-493.18,0.00027253,2]
[423704361,1780318251000,-1346.3,0.00026296,2]
[423704339,1780318251000,-600.0,0.00025,5]
[423704358,1780318251000,-500.0,0.00026132,30]
[423704331,1780318251000,-440.65001271,0.00025,2]
[423704332,1780318251000,-1845.35216406,0.00025,2]
[423704333,1780318251000,-1764.1352666,0.00025,2]
[423704335,1780318251000,-322.52267832,0.00025,2]
[423704392,1780318251000,-151.0,0.00027397,2]
[423704343,1780318251000,-1273.0,0.00025039,2]
[423704334,1780318251000,-431.63813091,0.00025,2]
[423704336,1780318251000,-1943.0,0.00025,2]
[423704337,1780318251000,-547.08824232,0.00025,2]
[423704344,1780318251000,-150.0,0.00025039,2]
[423704338,1780318251000,-1230.09181537,0.00025,7]
[423704341,1780318251000,-3551.0,0.00025039,2]
[423704340,1780318251000,-929.0,0.00025039,2]
[423704342,1780318251000,-1226.0,0.00025039,2]
[423704347,1780318251000,-200.0,0.00025357,2]
[423704346,1780318251000,-440.99,0.00025234,30]
[423704345,1780318251000,-493.18,0.00025234,30]
[423704352,1780318251000,-440.99,0.00025811,7]
[423704353,1780318251000,-550.0,0.00026,2]
[423704348,1780318251000,-493.18,0.00025523,2]
[423704350,1780318251000,-241.18,0.00025644,2]
[423704354,1780318251000,-493.18,0.00026099,30]
[423704349,1780318251000,-440.99,0.00025523,2]
[423704351,1780318251000,-493.18,0.00025811,7]
[423704355,1780318251000,-440.99,0.00026099,30]
[423704357,1780318251000,-500.0,0.00026132,30]
[423704367,1780318251000,-440.99,0.00026676,7]
[423704362,1780318251000,-200.0,0.00026357,2]
[423704381,1780318251000,-500.0,0.00027397,2]
[423704395,1780318251000,-273.268058,0.00027397,2]
[423704384,1780318251000,-1500.0,0.00027397,2]
[423704423,1780318251000,-493.18,0.0002783,30]
[423704425,1780318251000,-913.9,0.00027887,15]
[423704427,1780318251000,-608.72,0.00027911,7]
[423704421,1780318251000,-200.0,0.00027723,2]
[423704424,1780318251000,-440.99,0.0002783,30]
[423704429,1780318251000,-1088.20407111,0.00027911,5]
[423704431,1780318251000,-1018.66196263,0.00027911,5]
[423704433,1780318251000,-1033.44050452,0.00027911,5]
[423704432,1780318251000,-1099.27031393,0.00027911,5]
[423704440,1780318251000,-1011.88990363,0.00027911,5]
[423704439,1780318251000,-1148.50426279,0.00027911,5]
[423704441,1780318251000,-1101.8335025,0.00027911,5]
[423704436,1780318251000,-1024.48860914,0.00027911,5]
[423704435,1780318251000,-1135.59222124,0.00027911,5]
[423704434,1780318251000,-1094.13611271,0.00027911,5]
[423704438,1780318251000,-1052.96591886,0.00027911,5]
[423704437,1780318251000,-1107.56017083,0.00027911,5]
[423704430,1780318251000,-1132.7037847,0.00027911,5]
[423704443,1780318251000,-1113.62077573,0.00027911,5]
[423704391,1780318251000,-151.0,0.00027397,2]
[423704444,1780318251000,-1136.52052052,0.00027911,5]
[423704446,1780318251000,-1117.03284882,0.00027911,5]
[423704448,1780318251000,-1031.19079607,0.00027911,5]
[423704445,1780318251000,-1016.28303095,0.00027911,5]
[423704450,1780318251000,-1005.54396729,0.00027911,5]
[423704447,1780318251000,-1097.93715069,0.00027911,5]
[423704449,1780318251000,-1032.0758563,0.00027911,5]
[423704418,1780318251000,-2000.0,0.000276,2]
[423704419,1780318251000,-426.03840816,0.00027604,2]
[423704442,1780318251000,-1028.057759,0.00027911,5]
[423704426,1780318251000,-160.97697809,0.00027911,30]
[423704420,1780318251000,-705.0,0.00027671,2]
[423704393,1780318251000,-273.268058,0.00027397,2]
[423704388,1780318251000,-1409.269871,0.00027397,2]
[423704405,1780318251000,-800.31,0.000274,7]
[423704400,1780318251000,-13448.58,0.00027397,10]
[423704399,1780318251000,-179.503546,0.00027397,2]
[423704394,1780318251000,-273.268058,0.00027397,2]
[423704404,1780318251000,-868.96,0.000274,7]
[423704397,1780318251000,-179.503546,0.00027397,2]
[423704401,1780318251000,-179.503546,0.00027397,2]
[423704396,1780318251000,-273.268058,0.00027397,2]
[423704398,1780318251000,-179.503546,0.00027397,2]
[423704403,1780318251000,-1000.0,0.00027397,30]
[423704402,1780318251000,-1000.0,0.00027397,30]
[423704407,1780318251000,-150.19631424,0.000274,2]
[423704428,1780318251000,-579.4,0.00027911,7]
[423704406,1780318251000,-4826.0,0.000274,14]
[423704422,1780318251000,-743.69,0.00027812,7]
[423704417,1780318251000,-959.0,0.0002756,10]
[423704414,1780318251000,-3439.0,0.000275,7]
[423704415,1780318251000,-493.18,0.00027541,7]
[423704416,1780318251000,-440.99,0.00027541,7]
[423704412,1780318251000,-150.0,0.00027445,2]
[423704410,1780318251000,-183.0,0.00027441,2]
[423704411,1780318251000,-280.0,0.00027445,2]
[423704409,1780318251000,-1316.0,0.00027429,5]
[423704408,1780318251000,-1177.0,0.00027429,5]
[423704413,1780318251000,-220.0,0.00027445,2]
[423704473,1780318252000,-166.00924035,0.00028391,2]
[423704491,1780318252000,-440.99,0.00028406,7]
[423704476,1780318252000,-290.53758135,0.00028391,2]
[423704469,1780318252000,-174.4163057,0.00028389,2]
[423704478,1780318252000,-169.48143882,0.00028391,2]
[423704480,1780318252000,-167.07861682,0.00028391,2]
[423704479,1780318252000,-178.55371353,0.00028391,2]
[423704482,1780318252000,-175.0374733,0.00028391,2]
[423704484,1780318252000,-156.72634123,0.00028391,2]
[423704488,1780318252000,-198.95457223,0.00028391,2]
[423704483,1780318252000,-295.84126637,0.00028391,2]
[423704487,1780318252000,-155.56990815,0.00028391,2]
[423704492,1780318252000,-160.97697809,0.00028425,30]
[423704490,1780318252000,-493.18,0.00028406,7]
[423704486,1780318252000,-185.54120756,0.00028391,2]
[423704485,1780318252000,-155.16539568,0.00028391,2]
[423704489,1780318252000,-4826.0,0.000284,14]
[423704477,1780318252000,-158.07402787,0.00028391,2]
[423704481,1780318252000,-162.95578417,0.00028391,2]
[423704470,1780318252000,-157.54046698,0.00028389,2]
[423704458,1780318252000,-215.65015035,0.00028,30]
[423704474,1780318252000,-277.97998943,0.00028391,2]
[423704454,1780318252000,-6347.25829043,0.00028,60]
[423704453,1780318252000,-48915.65850526,0.00028,2]
[423704451,1780318252000,-1246.08621313,0.00027911,5]
[423704452,1780318252000,-388880.9110387,0.0002795,2]
[423704455,1780318252000,-160.0,0.00028,2]
[423704456,1780318252000,-600.0,0.00028,2]
[423704457,1780318252000,-215.65015035,0.00028,10]
[423704467,1780318252000,-705.0,0.00028205,3]
[423704459,1780318252000,-929.0,0.00028039,2]
[423704461,1780318252000,-1226.0,0.00028039,2]
[423704460,1780318252000,-3551.0,0.00028039,2]
[423704462,1780318252000,-493.18,0.00028118,2]
[423704465,1780318252000,-8848.75,0.00028127,2]
[423704464,1780318252000,-9785.75,0.00028127,2]
[423704466,1780318252000,-297.63,0.00028127,2]
[423704463,1780318252000,-440.99,0.00028118,2]
[423704468,1780318252000,-1346.3,0.00028267,2]
[423704475,1780318252000,-154.65802657,0.00028391,2]
[423704472,1780318252000,-155.52078495,0.00028391,2]
[423704471,1780318252000,-240.19730523,0.00028389,2]
[423704495,1780318252000,-168.63125381,0.00028435,2]
[423704493,1780318252000,-163.70688747,0.00028435,2]
[423704505,1780318252000,-200.0,0.00028511,2]
[423704522,1780318252000,-200.0,0.000289,2]
[423704524,1780318252000,-160.97697809,0.00028938,30]
[423704525,1780318252000,-40471.63904255,0.0002897,6]
[423704530,1780318252000,-169.57875851,0.00029,2]
[423704527,1780318252000,-1000.0,0.00029,2]
[423704526,1780318252000,-189.13920441,0.00028971,2]
[423704528,1780318252000,-2500.0,0.00029,2]
[423704529,1780318252000,-2500.0,0.00029,2]
[423704531,1780318252000,-9005.47623449,0.00029,2]
[423704521,1780318252000,-500.0,0.00028855,2]
[423704523,1780318252000,-337.0,0.000289,2]
[423704532,1780318252000,-5002.0718935,0.00029,2]
[423704534,1780318252000,-10684.71129994,0.00029,2]
[423704539,1780318252000,-250429.30854893,0.00029,30]
[423704535,1780318252000,-598.5433452,0.00029,2]
[423704537,1780318252000,-727.65334769,0.00029,2]
[423704538,1780318252000,-510.86440665,0.00029,2]
[423704536,1780318252000,-219.56066956,0.00029,2]
[423704506,1780318252000,-3439.0,0.000286,7]
[423704520,1780318252000,-3408.0,0.000288,2]
[423704516,1780318252000,-1000.0,0.00028767,40]
[423704533,1780318252000,-3263.31593061,0.00029,2]
[423704515,1780318252000,-500.22264435,0.00028767,2]
[423704517,1780318252000,-6006.8,0.00028767,2]
[423704494,1780318252000,-184.80630817,0.00028435,2]
[423704497,1780318252000,-175.10362622,0.00028435,2]
[423704498,1780318252000,-190.71656588,0.00028435,2]
[423704502,1780318252000,-156.62977018,0.00028435,2]
[423704499,1780318252000,-166.88681838,0.00028435,2]
[423704496,1780318252000,-183.86134529,0.00028435,2]
[423704501,1780318252000,-204.64361821,0.00028435,2]
[423704503,1780318252000,-181.25727563,0.00028435,2]
[423704504,1780318252000,-835.50367395,0.000285,2]
[423704500,1780318252000,-223.88544584,0.00028435,2]
[423704519,1780318252000,-1100.02,0.000288,7]
[423704508,1780318252000,-493.18,0.00028695,30]
[423704507,1780318252000,-411.2,0.00028695,30]
[423704509,1780318252000,-440.99,0.00028695,30]
[423704510,1780318252000,-868.96,0.000287,7]
[423704511,1780318252000,-800.31,0.000287,7]
[423704514,1780318252000,-562.02,0.00028749,7]
[423704512,1780318252000,-705.0,0.00028739,3]
[423704518,1780318252000,-164.030051,0.00028779,7]
[423704513,1780318252000,-590.46,0.00028749,7]
[423704582,1780318253000,-526.72086226,0.00029,2]
[423704578,1780318253000,-162.0,0.00029,2]
[423704579,1780318253000,-162.0,0.00029,2]
[423704577,1780318253000,-162.0,0.00029,2]
[423704575,1780318253000,-162.0,0.00029,2]
[423704567,1780318253000,-158.0,0.00029,2]
[423704573,1780318253000,-162.0,0.00029,2]
[423704574,1780318253000,-162.0,0.00029,2]
[423704571,1780318253000,-162.0,0.00029,2]
[423704581,1780318253000,-10000.0,0.00029,2]
[423704572,1780318253000,-162.0,0.00029,2]
[423704576,1780318253000,-162.0,0.00029,2]
[423704580,1780318253000,-1230.09181537,0.00029,30]
[423704592,1780318253000,-1265.26,0.00029164,30]
[423704584,1780318253000,-215.65015035,0.00029,30]
[423704587,1780318253000,-300.0,0.0002913,7]
[423704586,1780318253000,-4826.0,0.000291,14]
[423704585,1780318253000,-317.0819157,0.00029,2]
[423704588,1780318253000,-934.81,0.00029153,30]
[423704590,1780318253000,-427.32,0.0002916,30]
[423704600,1780318253000,-598.53,0.00029237,2]
[423704589,1780318253000,-934.81,0.00029153,7]
[423704591,1780318253000,-427.32,0.0002916,7]
[423704593,1780318253000,-1265.26,0.00029164,7]
[423704595,1780318253000,-598.53,0.0002917,30]
[423704568,1780318253000,-162.0,0.00029,2]
[423704583,1780318253000,-215.65015035,0.00029,7]
[423704570,1780318253000,-162.0,0.00029,2]
[423704554,1780318253000,-156.0,0.00029,2]
[423704566,1780318253000,-158.0,0.00029,2]
[423704540,1780318253000,-160.0,0.00012695,2]
[423704541,1780318253000,-63452.58927272,0.00014886,2]
[423704544,1780318253000,-151.0,0.00029,7]
[423704542,1780318253000,-109330.85666411,0.00029,30]
[423704543,1780318253000,-5000.0,0.00029,2]
[423704545,1780318253000,-200.0,0.00029,2]
[423704597,1780318253000,-934.81,0.00029224,2]
[423704546,1780318253000,-200.0,0.00029,2]
[423704547,1780318253000,-200.0,0.00029,2]
[423704548,1780318253000,-258.16,0.00029,2]
[423704550,1780318253000,-162.0,0.00029,2]
[423704552,1780318253000,-156.0,0.00029,2]
[423704569,1780318253000,-162.0,0.00029,2]
[423704551,1780318253000,-156.0,0.00029,2]
[423704553,1780318253000,-156.0,0.00029,2]
[423704555,1780318253000,-156.0,0.00029,2]
[423704557,1780318253000,-160.0,0.00029,2]
[423704556,1780318253000,-156.0,0.00029,2]
[423704564,1780318253000,-158.0,0.00029,2]
[423704561,1780318253000,-158.0,0.00029,2]
[423704562,1780318253000,-158.0,0.00029,2]
[423704558,1780318253000,-158.0,0.00029,2]
[423704559,1780318253000,-158.0,0.00029,2]
[423704560,1780318253000,-158.0,0.00029,2]
[423704563,1780318253000,-158.0,0.00029,2]
[423704565,1780318253000,-158.0,0.00029,2]
[423704549,1780318253000,-3011.23349527,0.00029,2]
[423704599,1780318253000,-1265.26,0.00029233,2]
[423704594,1780318253000,-432.38936914,0.0002917,2]
[423704650,1780318253000,-934.81,0.00029332,30]
[423704632,1780318253000,-328.79,0.00029257,7]
[423704638,1780318253000,-328.79,0.00029257,7]
[423704630,1780318253000,-328.79,0.00029257,30]
[423704628,1780318253000,-328.79,0.00029257,2]
[423704634,1780318253000,-328.79,0.00029257,2]
[423704633,1780318253000,-328.79,0.00029257,30]
[423704639,1780318253000,-328.79,0.00029257,30]
[423704636,1780318253000,-328.79,0.00029257,30]
[423704641,1780318253000,-328.79,0.00029257,7]
[423704651,1780318253000,-427.32,0.00029337,30]
[423704642,1780318253000,-328.79,0.00029257,30]
[423704640,1780318253000,-328.79,0.00029257,2]
[423704631,1780318253000,-328.79,0.00029257,2]
[423704644,1780318253000,-328.8,0.00029257,7]
[423704645,1780318253000,-705.0,0.00029273,4]
[423704649,1780318253000,-300.0,0.0002933,20]
[423704647,1780318253000,-631.03,0.00029298,2]
[423704646,1780318253000,-1331.53,0.00029292,2]
[423704648,1780318253000,-200.0,0.000293,2]
[423704598,1780318253000,-427.32,0.0002923,2]
[423704652,1780318253000,-1265.26,0.0002934,30]
[423704656,1780318253000,-868.96,0.000294,7]
[423704654,1780318253000,-1331.53,0.00029391,30]
[423704653,1780318253000,-598.53,0.00029344,30]
[423704655,1780318253000,-631.03,0.00029396,30]
[423704657,1780318253000,-800.31,0.000294,7]
[423704643,1780318253000,-328.79,0.00029257,2]
[423704635,1780318253000,-328.79,0.00029257,7]
[423704637,1780318253000,-328.79,0.00029257,2]
[423704627,1780318253000,-328.79,0.00029257,30]
[423704596,1780318253000,-598.53,0.0002917,7]
[423704601,1780318253000,-1331.53,0.00029241,30]
[423704607,1780318253000,-293.99,0.00029249,30]
[423704629,1780318253000,-328.79,0.00029257,7]
[423704603,1780318253000,-631.03,0.00029249,30]
[423704609,1780318253000,-293.99,0.00029249,7]
[423704605,1780318253000,-293.99,0.00029249,2]
[423704606,1780318253000,-293.99,0.00029249,7]
[423704613,1780318253000,-293.99,0.00029249,30]
[423704602,1780318253000,-1331.53,0.00029241,7]
[423704612,1780318253000,-293.99,0.00029249,7]
[423704608,1780318253000,-293.99,0.00029249,2]
[423704611,1780318253000,-293.99,0.00029249,2]
[423704610,1780318253000,-293.99,0.00029249,30]
[423704604,1780318253000,-631.03,0.00029249,7]
[423704625,1780318253000,-328.79,0.00029257,2]
[423704615,1780318253000,-293.99,0.00029249,7]
[423704624,1780318253000,-294.11,0.00029249,7]
[423704620,1780318253000,-293.99,0.00029249,2]
[423704622,1780318253000,-293.99,0.00029249,30]
[423704616,1780318253000,-293.99,0.00029249,30]
[423704618,1780318253000,-293.99,0.00029249,7]
[423704623,1780318253000,-293.99,0.00029249,2]
[423704614,1780318253000,-293.99,0.00029249,2]
[423704617,1780318253000,-293.99,0.00029249,2]
[423704619,1780318253000,-293.99,0.00029249,30]
[423704626,1780318253000,-328.79,0.00029257,7]
[423704621,1780318253000,-293.99,0.00029249,7]
[423704683,1780318254000,-480.39461047,0.00029719,2]
[423704682,1780318254000,-315.08093396,0.00029719,2]
[423704684,1780318254000,-191.17928012,0.00029721,2]
[423704690,1780318254000,-309.31605314,0.00029721,2]
[423704687,1780318254000,-332.0184807,0.00029721,2]
[423704688,1780318254000,-219.82987783,0.00029721,2]
[423704686,1780318254000,-311.04156989,0.00029721,2]
[423704685,1780318254000,-224.42027131,0.00029721,2]
[423704691,1780318254000,-581.07516271,0.00029721,2]
[423704689,1780318254000,-555.95997886,0.00029721,2]
[423704699,1780318254000,-199.04989299,0.00029721,2]
[423704694,1780318254000,-357.10742706,0.00029721,2]
[423704704,1780318254000,-310.33079136,0.00029721,2]
[423704695,1780318254000,-334.15723364,0.00029721,2]
[423704697,1780318254000,-350.0749466,0.00029721,2]
[423704703,1780318254000,-196.51731764,0.00029721,2]
[423704696,1780318254000,-325.91156834,0.00029721,2]
[423704693,1780318254000,-338.96287765,0.00029721,2]
[423704698,1780318254000,-167.72416141,0.00029721,2]
[423704681,1780318254000,-348.83261139,0.00029719,2]
[423704692,1780318254000,-316.14805575,0.00029721,2]
[423704678,1780318254000,-4826.0,0.000297,14]
[423704701,1780318254000,-313.45268245,0.00029721,2]
[423704679,1780318254000,-1018.47,0.000297,30]
[423704662,1780318254000,-160.97697809,0.00029452,30]
[423704659,1780318254000,-427.32,0.00029446,7]
[423704658,1780318254000,-934.81,0.00029442,7]
[423704660,1780318254000,-1265.26,0.00029448,7]
[423704661,1780318254000,-598.53,0.00029451,7]
[423704666,1780318254000,-934.81,0.0002955,2]
[423704664,1780318254000,-631.03,0.00029494,7]
[423704663,1780318254000,-1331.53,0.0002949,7]
[423704667,1780318254000,-427.32,0.00029553,2]
[423704680,1780318254000,-152.0,0.00029717,30]
[423704665,1780318254000,-300.0,0.0002953,7]
[423704670,1780318254000,-1331.53,0.00029589,2]
[423704669,1780318254000,-598.53,0.00029558,2]
[423704672,1780318254000,-934.81,0.00029658,30]
[423704673,1780318254000,-427.32,0.00029661,30]
[423704671,1780318254000,-631.03,0.00029593,2]
[423704676,1780318254000,-1331.53,0.00029688,30]
[423704674,1780318254000,-1265.26,0.00029662,30]
[423704675,1780318254000,-598.53,0.00029664,30]
[423704677,1780318254000,-631.03,0.0002969,30]
[423704668,1780318254000,-1265.26,0.00029555,2]
[423704700,1780318254000,-591.68253273,0.00029721,2]
[423704702,1780318254000,-212.2834761,0.00029721,2]
[423704706,1780318254000,-311.1398163,0.00029721,2]
[423704728,1780318254000,-197.4607168,0.00029767,2]
[423704732,1780318254000,-158.64064652,0.00029767,2]
[423704733,1780318254000,-447.77089168,0.00029767,2]
[423704731,1780318254000,-333.77363676,0.00029767,2]
[423704735,1780318254000,-156.23325827,0.00029767,2]
[423704734,1780318254000,-409.28723643,0.00029767,2]
[423704736,1780318254000,-198.71196225,0.00029767,2]
[423704738,1780318254000,-362.51455126,0.00029767,2]
[423704743,1780318254000,-598.53,0.00029772,7]
[423704730,1780318254000,-180.52886893,0.00029767,2]
[423704746,1780318254000,-1018.47,0.00029795,30]
[423704747,1780318254000,-705.0,0.00029807,4]
[423704744,1780318254000,-1331.53,0.00029787,7]
[423704742,1780318254000,-1018.47,0.00029771,30]
[423704745,1780318254000,-631.03,0.00029789,7]
[423704741,1780318254000,-1265.26,0.0002977,7]
[423704749,1780318254000,-165.02735787,0.00029826,2]
[423704748,1780318254000,-1018.47,0.00029818,30]
[423704750,1780318254000,-1018.47,0.00029842,30]
[423704705,1780318254000,-371.08241513,0.00029721,2]
[423704740,1780318254000,-427.32,0.00029769,7]
[423704729,1780318254000,-248.7814477,0.00029767,2]
[423704739,1780318254000,-934.81,0.00029768,7]
[423704727,1780318254000,-168.6079583,0.00029767,2]
[423704726,1780318254000,-381.43313175,0.00029767,2]
[423704709,1780318254000,-300.0,0.0002973,7]
[423704707,1780318254000,-397.90914447,0.00029721,2]
[423704714,1780318254000,-1755.0,0.00029764,30]
[423704708,1780318254000,-1018.47,0.00029724,30]
[423704711,1780318254000,-866.0,0.00029764,30]
[423704712,1780318254000,-434.0,0.00029764,30]
[423704713,1780318254000,-1828.0,0.00029764,30]
[423704710,1780318254000,-1018.47,0.00029747,30]
[423704715,1780318254000,-421.0,0.00029764,30]
[423704751,1780318254000,-1018.47,0.00029866,30]
[423704718,1780318254000,-533.0,0.00029764,30]
[423704716,1780318254000,-317.0,0.00029764,30]
[423704717,1780318254000,-1934.0,0.00029764,30]
[423704723,1780318254000,-170.59001071,0.00029767,2]
[423704719,1780318254000,-166.0,0.00029764,30]
[423704721,1780318254000,-369.61261634,0.00029767,2]
[423704725,1780318254000,-350.20725243,0.00029767,2]
[423704722,1780318254000,-337.26250762,0.00029767,2]
[423704720,1780318254000,-327.41377494,0.00029767,2]
[423704737,1780318254000,-313.25954036,0.00029767,2]
[423704724,1780318254000,-367.72269058,0.00029767,2]
[423704780,1780318255000,-109001.54232865,0.0003,5]
[423704784,1780318255000,-87877.0,0.0003,2]
[423704788,1780318255000,-3366.30597628,0.0003,10]
[423704785,1780318255000,-2000.0,0.0003,3]
[423704790,1780318255000,-166.02286567,0.0003,2]
[423704781,1780318255000,-362.07748487,0.0003,2]
[423704786,1780318255000,-1124.32190287,0.0003,2]
[423704783,1780318255000,-20245.13627805,0.0003,2]
[423704789,1780318255000,-1000.0,0.0003,2]
[423704782,1780318255000,-7000.0,0.0003,3]
[423704787,1780318255000,-1851.21505152,0.0003,2]
[423704791,1780318255000,-5716.8758898,0.0003,14]
[423704800,1780318255000,-1018.47,0.00030032,30]
[423704795,1780318255000,-200.0,0.0003,2]
[423704794,1780318255000,-200.0,0.0003,2]
[423704796,1780318255000,-2000.0,0.0003,2]